{"text_format":"1","workbook":"xlsx","n_sheets":5,"sheets":["Maine","القائمة ","الشهادة ","Sheet4","البحث"],"not_rendered":{"charts":0,"images":5,"macros":1,"external_links":0,"defined_names":5,"comments":2,"pivot_tables":0},"unopened":[],"bounds":{"document_bytes":16777216,"sheet_cells":100000,"rows_first":2000,"rows_last":500,"rows_between":2000,"halvings":0,"cell_chars":16384,"cell_head_chars":4096},"cells_cut":0,"cells_raw":0,"read":"whole","date_system":"1900"}

{"sheet":"Maine","index":0,"n_rows":0,"n_cols":0,"rows_kept":0,"cut":false,"hidden":false,"merged":[]}

{"sheet":"القائمة ","index":1,"n_rows":702,"n_cols":12,"rows_kept":702,"cut":false,"hidden":false,"merged":[]}
[]
[]
[]
["الرقم ","اللقب","الاسم","تاريخ الميلاد","مكان الميلاد","القسم ","السنة الدراسية ","رقم التسجيل","تاريخ الخروج","محرر الشهادة ","التكرار","code bar"]
[107,"حساني ","مخطار","1983-01-03","الغيشة","السابعة أساسي","1998/1999",167,"1999-06-30","دهكل احمد",{"$f":"K7","v":true},{"$f":"\"*\"&H5&D5&A5&I5","v":"*1673031910736341"}]
[377,"سماعيني","احمد","2003-11-26","تاجرونة","الثانية متوسط","2019/2020",160,"2020-06-30","دهكل احمد",{"$f":"COUNTIF(H5:H36,H6)=1","v":true},{"$f":"\"*\"&H6&D6&A6&I6","v":"*1603795137744012"}]
[228,"جبالي","اية","2009-04-05","افلو","الثانية متوسط","2021/2022",168,"متمدرسة","دهكل احمد",{"$f":"COUNTIF(H6:H37,H7)=1","v":true},"*16839908228متمدرسة"]
[381,"شنافي","بشير","1989-04-15","تاجرونة","الرابعة متوسط","2006/2007",15,"2007-06-30","دهكل احمد",true,"*153261338139263"]
[226,"بن يوسف","عبد القادر","2004-06-27","الاغواط","الثالثة متوسط","2021/2022",85,"الى يومنا هذا","دهكل احمد",true,"*8538165226الى يومنا هذا"]
[382,"ماحي","إبراهيم","1986-12-15","تاجرونة","التاسعة أساسي","2002/2003",100,"2003-12-31","دهكل احمد",true,"*1003176138237986"]
[384,"بلعربي","احمد","2002-09-01","تاجرونة","الثانية متوسط","2017/2018",86,"2018-02-11","دهكل احمد",true,"*863750038443142"]
[390,"ثعلابي","العيد","1997-02-10","تاجرونة","الثالثة متوسط","2012/2013",151,"2013-06-30","دهكل احمد",true,"*1513547139041455"]
[104,"بن بغداد","كريمة","1989-09-30","تاجرونة","الأولى متوسط","2004/2005",349,"2004-06-30","دهكل احمد",true,"*3493278110438168"]
[106,"حساني ","عبد الله","1983-12-27","الغيشة","التاسعة أساسي","2000/2001",22,"2001-06-30","دهكل احمد",true,"*223067710637072"]
[108,"نقاز ","طيفور","1985-03-09","الغيشة","الثامنة أساسي","1998/1999",103,"1999-06-30","دهكل احمد",true,"*1033111510836341"]
[109,"شيايدة","زينب","1997-03-21","بريدة","الرابعة متوسط","2014/2015",245,"2015-06-30","دهكل احمد",true,"*2453551010942185"]
[134,"بومنديل","النعيمي","00/00/1973","بوعلام","التاسعة أساسي","1990/1991",13,"1991-06-30","دهكل احمد",true,"*1300/00/197313433419"]
[136,"حساني ","ام الخير","1986-12-01","تاجرونة","السابعة أساسي","2000/2001",153,"2001-06-30","دهكل احمد",true,"*1533174713637072"]
[139,"سعداوي","أجديد","1981-11-14","الغيشة","التاسعة أساسي","1994/1995",6,"1995-06-30","دهكل احمد",true,"*62990413934880"]
[140,"مخطاري","ربيعة","1982-08-04","الغيشة","التاسعة أساسي","1997/1998",30,"1998-06-30","دهكل احمد",true,"*303016714035976"]
[141,"سعداوي","فضيلة","1995-02-26","الاغواط","الأولى متوسط","2008/2009",306,"2009-06-30","دهكل احمد",true,"*3063475614139994"]
[144,"زهيو","تجيني","1976-09-20","بوعلام","السابعة أساسي","1991/1992",63,"جوان 1992","دهكل احمد",true,"*6328023144جوان 1992"]
[219,"سهلي","فدوى","2005-08-28","تاجرونة ","الرابعة متوسط رقم 02","2021/2022",41,"2022-06-30","دهكل احمد",true,"*413859221944742"]
[157,"نوي","الطاهر","00/00/1979","الغيشة","السنة التاسعة أساسي","1995/1996",null,"1996-06-30","دهكل احمد",false,"*00/00/197915735246"]
[192,"مضميط","عوالي","1973-10-15","الغيشة","التاسعة أساسي","1991/1990",24,"1991-06-30","دهكل احمد",true,"*242695219233419"]
[195,"مطلوق","محمد","1976-04-18","بوعلام","التاسعة أساسي","1991/1992",14,"1992-03-04","دهكل احمد",true,"*142786819533667"]
[196,"بلحاج","عيدة","1978-10-03","بوعلام","الثامنة أساسي","1994/1995",69,"1995-06-30","دهكل احمد",true,"*692876619634880"]
[203,"بوهني","بلقاسم","1993-12-07","تاجرونة","الرابعة متوسط","2011/2012",12,"2012-06-30","دهكل احمد",true,"*123431020341090"]
[62,"سماعيني","فاطمة الزهراء","2010-09-22","تاجرونة","الثانية متوسط","2022/2023",203,"الى يومنا هذا","دهكل احمد",true,"*2034044362الى يومنا هذا"]
[210,"بوحميدي","نورالدين","1987-07-21","تاجرونة","السابعة أساسي","2002/2023",338,"2002-06-30","دهكل احمد",true,"*3383197921037437"]
[211,"بن بغداد","منصورة","1988-03-15","تاجرونة","الثامنة أساسي","2002/2003",97,"2003-06-30","دهكل احمد",true,"*973221721137802"]
[214,"بن سعيد","يوسف","1988-06-23","تاجرونة","الأولى متوسط","2003/2004",235,"2004-06-30","دهكل احمد",true,"*2353231721438168"]
[215,"بن سعيد","مولضاية","1986-05-22","تاجرونة","التاسعة أساسي","2004/2005",43,"2005-06-30","دهكل احمد",true,"*433155421538533"]
[216,"الطيبي ","اسمعين","1982-05-23","بوعلام","التاسعة أساسي","1997/1998",18,"1998-06-30","دهكل احمد",true,"*183009421635976"]
[119,"سماعيني","مصطفى","2009-11-17","تاجرونة","الأولى متوسط","2022/2023",1203,"الى يومنا هذا","دهكل احمد",true,"*120340134119الى يومنا هذا"]
[217,"بن سعيد","خيرة","1982-12-05","بوعلام","الثامنة أساسي","1996/1997",66,"1997-06-30","دهكل احمد",true,"*663029021735611"]
[218,"بلعربي","يمينة","1992-01-18","تاجرونة","الثالثة متوسط","2008/2009",64,"2009-06-30","دهكل احمد",{"$f":"COUNTIF(H36:H67,H37)=1","v":true},"*643362121839994"]
[null,null,null,null,null,null,null,null,null,"دهكل احمد",false,"*"]
[null,null,null,null,null,null,null,null,null,"دهكل احمد",false,"*"]
[null,null,null,null,null,null,null,null,null,"دهكل احمد",false,"*"]
[null,null,null,null,null,null,null,null,null,"دهكل احمد",false,"*"]
[null,null,null,null,null,null,null,null,null,"دهكل احمد",false,"*"]
[null,null,null,null,null,null,null,null,null,"دهكل احمد",false,"*"]
[null,null,null,null,null,null,null,null,null,"دهكل احمد",false,"*"]
[null,null,null,null,null,null,null,null,null,"دهكل احمد",false,"*"]
[null,null,null,null,null,null,null,null,null,"دهكل احمد",false,"*"]
[null,null,null,null,null,null,null,null,null,"دهكل احمد",false,"*"]
[null,null,null,null,null,null,null,null,null,"دهكل احمد",false,"*"]
[null,null,null,null,null,null,null,null,null,"دهكل احمد",false,"*"]
[null,null,null,null,null,null,null,null,null,"دهكل احمد",false,"*"]
[null,null,null,null,null,null,null,null,null,"دهكل احمد",false,"*"]
[null,null,null,null,null,null,null,null,null,"دهكل احمد",false,"*"]
[null,null,null,null,null,null,null,null,null,"دهكل احمد",false,"*"]
[null,null,null,null,null,null,null,null,null,"دهكل احمد",false,"*"]
[null,null,null,null,null,null,null,null,null,"دهكل احمد",false,"*"]
[null,null,null,null,null,null,null,null,null,"دهكل احمد",false,"*"]
[null,null,null,null,null,null,null,null,null,"دهكل احمد",false,"*"]
[null,null,null,null,null,null,null,null,null,"دهكل احمد",false,"*"]
[null,null,null,null,null,null,null,null,null,"دهكل احمد",false,"*"]
[null,null,null,null,null,null,null,null,null,"دهكل احمد",false,"*"]
[null,null,null,null,null,null,null,null,null,"دهكل احمد",false,"*"]
[null,null,null,null,null,null,null,null,null,"دهكل احمد",false,"*"]
[null,null,null,null,null,null,null,null,null,"دهكل احمد",false,"*"]
[null,null,null,null,null,null,null,null,null,"دهكل احمد",false,"*"]
[null,null,null,null,null,null,null,null,null,"دهكل احمد",false,"*"]
[null,null,null,null,null,null,null,null,null,"دهكل احمد",false,"*"]
[null,null,null,null,null,null,null,null,null,"دهكل احمد",false,"*"]
[null,null,null,null,null,null,null,null,null,null,false,"*"]
[null,null,null,null,null,null,null,null,null,"دهكل احمد",false,"*"]
[null,null,null,null,null,null,null,null,null,"دهكل احمد",false,{"$f":"\"*\"&H70&D70&A70&I70","v":"*"}]
[null,null,null,null,null,null,null,null,null,"دهكل احمد",false,"*"]
[null,null,null,null,null,null,null,null,null,"دهكل احمد",false,"*"]
[null,null,null,null,null,null,null,null,null,"دهكل احمد",false,"*"]
[null,null,null,null,null,null,null,null,null,"دهكل احمد",false,"*"]
[null,null,null,null,null,null,null,null,null,null,false,"*"]
[null,null,null,null,null,null,null,null,null,null,false,"*"]
[null,null,null,null,null,null,null,null,null,null,false,"*"]
[null,null,null,null,null,null,null,null,null,null,false,"*"]
[null,null,null,null,null,null,null,null,null,null,false,"*"]
[null,null,null,null,null,null,null,null,null,null,false,"*"]
[null,null,null,null,null,null,null,null,null,null,false,"*"]
[null,null,null,null,null,null,null,null,null,null,false,"*"]
[null,null,null,null,null,null,null,null,null,null,false,"*"]
[null,null,null,null,null,null,null,null,null,null,false,"*"]
[null,null,null,null,null,null,null,null,null,null,false,"*"]
[null,null,null,null,null,null,null,null,null,null,false,"*"]
[null,null,null,null,null,null,null,null,null,null,false,"*"]
[null,null,null,null,null,null,null,null,null,null,false,"*"]
[null,null,null,null,null,null,null,null,null,null,false,"*"]
[null,null,null,null,null,null,null,null,null,null,false,"*"]
[null,null,null,null,null,null,null,null,null,null,false,"*"]
[null,null,null,null,null,null,null,null,null,null,false,"*"]
[null,null,null,null,null,null,null,null,null,null,false,"*"]
[null,null,null,null,null,null,null,null,null,null,false,"*"]
[null,null,null,null,null,null,null,null,null,null,false,"*"]
[null,null,null,null,null,null,null,null,null,null,false,"*"]
[null,null,null,null,null,null,null,null,null,null,false,"*"]
[null,null,null,null,null,null,null,null,null,null,false,"*"]
[null,null,null,null,null,null,null,null,null,null,false,"*"]
[null,null,null,null,null,null,null,null,null,null,false,"*"]
[null,null,null,null,null,null,null,null,null,null,{"$f":"COUNTIF(H100:H131,H101)=1","v":false},"*"]
[null,null,null,null,null,null,null,null,null,null,false,"*"]
[null,null,null,null,null,null,null,null,null,null,false,"*"]
[null,null,null,null,null,null,null,null,null,null,false,"*"]
[null,null,null,null,null,null,null,null,null,null,false,"*"]
[null,null,null,null,null,null,null,null,null,null,false,"*"]
[null,null,null,null,null,null,null,null,null,null,false,"*"]
[null,null,null,null,null,null,null,null,null,null,false,"*"]
[null,null,null,null,null,null,null,null,null,null,false,"*"]
[null,null,null,null,null,null,null,null,null,null,false,"*"]
[null,null,null,null,null,null,null,null,null,null,false,"*"]
[null,null,null,null,null,null,null,null,null,null,false,"*"]
[null,null,null,null,null,null,null,null,null,null,false,"*"]
[null,null,null,null,null,null,null,null,null,null,false,"*"]
[null,null,null,null,null,null,null,null,null,null,false,"*"]
[null,null,null,null,null,null,null,null,null,null,false,"*"]
[null,null,null,null,null,null,null,null,null,null,false,"*"]
[null,null,null,null,null,null,null,null,null,null,false,"*"]
[null,null,null,null,null,null,null,null,null,null,false,"*"]
[null,null,null,null,null,null,null,null,null,null,false,"*"]
[null,null,null,null,null,null,null,null,null,null,false,"*"]
[null,null,null,null,null,null,null,null,null,null,false,"*"]
[null,null,null,null,null,null,null,null,null,null,false,"*"]
[null,null,null,null,null,null,null,null,null,null,false,"*"]
[null,null,null,null,null,null,null,null,null,null,false,"*"]
[null,null,null,null,null,null,null,null,null,null,false,"*"]
[null,null,null,null,null,null,null,null,null,null,false,"*"]
[null,null,null,null,null,null,null,null,null,null,false,"*"]
[null,null,null,null,null,null,null,null,null,null,false,"*"]
[null,null,null,null,null,null,null,null,null,null,false,"*"]
[null,null,null,null,null,null,null,null,null,null,false,"*"]
[null,null,null,null,null,null,null,null,null,null,false,"*"]
[null,null,null,null,null,null,null,null,null,null,false,"*"]
[null,null,null,null,null,null,null,null,null,null,false,{"$f":"\"*\"&H134&D134&A134&I134","v":"*"}]
[null,null,null,null,null,null,null,null,null,null,false,"*"]
[null,null,null,null,null,null,null,null,null,null,false,"*"]
[null,null,null,null,null,null,null,null,null,null,false,"*"]
[null,null,null,null,null,null,null,null,null,null,false,"*"]
[null,null,null,null,null,null,null,null,null,null,false,"*"]
[null,null,null,null,null,null,null,null,null,null,false,"*"]
[null,null,null,null,null,null,null,null,null,null,false,"*"]
[null,null,null,null,null,null,null,null,null,null,false,"*"]
[null,null,null,null,null,null,null,null,null,null,false,"*"]
[null,null,null,null,null,null,null,null,null,null,false,"*"]
[null,null,null,null,null,null,null,null,null,null,false,"*"]
[null,null,null,null,null,null,null,null,null,null,false,"*"]
[null,null,null,null,null,null,null,null,null,null,false,"*"]
[null,null,null,null,null,null,null,null,null,null,false,"*"]
[null,null,null,null,null,null,null,null,null,null,false,"*"]
[null,null,null,null,null,null,null,null,null,null,false,"*"]
[null,null,null,null,null,null,null,null,null,null,false,"*"]
[null,null,null,null,null,null,null,null,null,null,false,"*"]
[null,null,null,null,null,null,null,null,null,null,false,"*"]
[null,null,null,null,null,null,null,null,null,null,false,"*"]
[null,null,null,null,null,null,null,null,null,null,false,"*"]
[null,null,null,null,null,null,null,null,null,null,false,"*"]
[null,null,null,null,null,null,null,null,null,null,false,"*"]
[null,null,null,null,null,null,null,null,null,null,false,"*"]
[null,null,null,null,null,null,null,null,null,null,false,"*"]
[null,null,null,null,null,null,null,null,null,null,false,"*"]
[null,null,null,null,null,null,null,null,null,null,false,"*"]
[null,null,null,null,null,null,null,null,null,null,false,"*"]
[null,null,null,null,null,null,null,null,null,null,false,"*"]
[null,null,null,null,null,null,null,null,null,null,false,"*"]
[null,null,null,null,null,null,null,null,null,null,{"$f":"COUNTIF(H164:H195,H165)=1","v":false},"*"]
[131,null,null,null,null,null,null,null,null,null,false,"*131"]
[132,null,null,null,null,null,null,null,null,null,false,"*132"]
[133,null,null,null,null,null,null,null,null,null,false,"*133"]
[134,null,null,null,null,null,null,null,null,null,false,"*134"]
[135,null,null,null,null,null,null,null,null,null,false,"*135"]
[136,null,null,null,null,null,null,null,null,null,false,"*136"]
[137,null,null,null,null,null,null,null,null,null,false,"*137"]
[138,null,null,null,null,null,null,null,null,null,false,"*138"]
[139,null,null,null,null,null,null,null,null,null,false,"*139"]
[140,null,null,null,null,null,null,null,null,null,false,"*140"]
[141,null,null,null,null,null,null,null,null,null,false,"*141"]
[142,null,null,null,null,null,null,null,null,null,false,"*142"]
[143,null,null,null,null,null,null,null,null,null,false,"*143"]
[144,null,null,null,null,null,null,null,null,null,false,"*144"]
[145,null,null,null,null,null,null,null,null,null,false,"*145"]
[146,null,null,null,null,null,null,null,null,null,false,"*146"]
[147,null,null,null,null,null,null,null,null,null,false,"*147"]
[148,null,null,null,null,null,null,null,null,null,false,"*148"]
[149,null,null,null,null,null,null,null,null,null,false,"*149"]
[150,null,null,null,null,null,null,null,null,null,false,"*150"]
[151,null,null,null,null,null,null,null,null,null,false,"*151"]
[152,null,null,null,null,null,null,null,null,null,false,"*152"]
[153,null,null,null,null,null,null,null,null,null,false,"*153"]
[154,null,null,null,null,null,null,null,null,null,false,"*154"]
[155,null,null,null,null,null,null,null,null,null,false,"*155"]
[156,null,null,null,null,null,null,null,null,null,false,"*156"]
[157,null,null,null,null,null,null,null,null,null,false,"*157"]
[158,null,null,null,null,null,null,null,null,null,false,"*158"]
[159,null,null,null,null,null,null,null,null,null,false,"*159"]
[160,null,null,null,null,null,null,null,null,null,false,"*160"]
[161,null,null,null,null,null,null,null,null,null,false,"*161"]
[162,null,null,null,null,null,null,null,null,null,false,"*162"]
[163,null,null,null,null,null,null,null,null,null,false,{"$f":"\"*\"&H198&D198&A198&I198","v":"*163"}]
[164,null,null,null,null,null,null,null,null,null,false,"*164"]
[165,null,null,null,null,null,null,null,null,null,false,"*165"]
[166,null,null,null,null,null,null,null,null,null,false,"*166"]
[167,null,null,null,null,null,null,null,null,null,false,"*167"]
[168,null,null,null,null,null,null,null,null,null,false,"*168"]
[169,null,null,null,null,null,null,null,null,null,false,"*169"]
[170,null,null,null,null,null,null,null,null,null,false,"*170"]
[171,null,null,null,null,null,null,null,null,null,false,"*171"]
[172,null,null,null,null,null,null,null,null,null,false,"*172"]
[173,null,null,null,null,null,null,null,null,null,false,"*173"]
[174,null,null,null,null,null,null,null,null,null,false,"*174"]
[175,null,null,null,null,null,null,null,null,null,false,"*175"]
[176,null,null,null,null,null,null,null,null,null,false,"*176"]
[177,null,null,null,null,null,null,null,null,null,false,"*177"]
[178,null,null,null,null,null,null,null,null,null,false,"*178"]
[179,null,null,null,null,null,null,null,null,null,false,"*179"]
[180,null,null,null,null,null,null,null,null,null,false,"*180"]
[181,null,null,null,null,null,null,null,null,null,false,"*181"]
[182,null,null,null,null,null,null,null,null,null,false,"*182"]
[183,null,null,null,null,null,null,null,null,null,false,"*183"]
[184,null,null,null,null,null,null,null,null,null,false,"*184"]
[185,null,null,null,null,null,null,null,null,null,false,"*185"]
[186,null,null,null,null,null,null,null,null,null,false,"*186"]
[187,null,null,null,null,null,null,null,null,null,false,"*187"]
[188,null,null,null,null,null,null,null,null,null,false,"*188"]
[189,null,null,null,null,null,null,null,null,null,false,"*189"]
[190,null,null,null,null,null,null,null,null,null,false,"*190"]
[191,null,null,null,null,null,null,null,null,null,false,"*191"]
[192,null,null,null,null,null,null,null,null,null,false,"*192"]
[193,null,null,null,null,null,null,null,null,null,false,"*193"]
[194,null,null,null,null,null,null,null,null,null,{"$f":"COUNTIF(H228:H259,H229)=1","v":false},"*194"]
[195,null,null,null,null,null,null,null,null,null,false,"*195"]
[196,null,null,null,null,null,null,null,null,null,false,"*196"]
[197,null,null,null,null,null,null,null,null,null,false,"*197"]
[198,null,null,null,null,null,null,null,null,null,false,"*198"]
[199,null,null,null,null,null,null,null,null,null,false,"*199"]
[200,null,null,null,null,null,null,null,null,null,false,"*200"]
[201,null,null,null,null,null,null,null,null,null,false,"*201"]
[202,null,null,null,null,null,null,null,null,null,false,"*202"]
[203,null,null,null,null,null,null,null,null,null,false,"*203"]
[204,null,null,null,null,null,null,null,null,null,false,"*204"]
[205,null,null,null,null,null,null,null,null,null,false,"*205"]
[206,null,null,null,null,null,null,null,null,null,false,"*206"]
[207,null,null,null,null,null,null,null,null,null,false,"*207"]
[208,null,null,null,null,null,null,null,null,null,false,"*208"]
[209,null,null,null,null,null,null,null,null,null,false,"*209"]
[210,null,null,null,null,null,null,null,null,null,false,"*210"]
[211,null,null,null,null,null,null,null,null,null,false,"*211"]
[212,null,null,null,null,null,null,null,null,null,false,"*212"]
[213,null,null,null,null,null,null,null,null,null,false,"*213"]
[214,null,null,null,null,null,null,null,null,null,false,"*214"]
[215,null,null,null,null,null,null,null,null,null,false,"*215"]
[216,null,null,null,null,null,null,null,null,null,false,"*216"]
[217,null,null,null,null,null,null,null,null,null,false,"*217"]
[218,null,null,null,null,null,null,null,null,null,false,"*218"]
[219,null,null,null,null,null,null,null,null,null,false,"*219"]
[220,null,null,null,null,null,null,null,null,null,false,"*220"]
[221,null,null,null,null,null,null,null,null,null,false,"*221"]
[222,null,null,null,null,null,null,null,null,null,false,"*222"]
[223,null,null,null,null,null,null,null,null,null,false,"*223"]
[224,null,null,null,null,null,null,null,null,null,false,"*224"]
[225,null,null,null,null,null,null,null,null,null,false,"*225"]
[226,null,null,null,null,null,null,null,null,null,false,"*226"]
[227,null,null,null,null,null,null,null,null,null,false,{"$f":"\"*\"&H262&D262&A262&I262","v":"*227"}]
[228,null,null,null,null,null,null,null,null,null,false,"*228"]
[229,null,null,null,null,null,null,null,null,null,false,"*229"]
[230,null,null,null,null,null,null,null,null,null,false,"*230"]
[231,null,null,null,null,null,null,null,null,null,false,"*231"]
[232,null,null,null,null,null,null,null,null,null,false,"*232"]
[233,null,null,null,null,null,null,null,null,null,false,"*233"]
[234,null,null,null,null,null,null,null,null,null,false,"*234"]
[235,null,null,null,null,null,null,null,null,null,false,"*235"]
[236,null,null,null,null,null,null,null,null,null,false,"*236"]
[237,null,null,null,null,null,null,null,null,null,false,"*237"]
[238,null,null,null,null,null,null,null,null,null,false,"*238"]
[239,null,null,null,null,null,null,null,null,null,false,"*239"]
[240,null,null,null,null,null,null,null,null,null,false,"*240"]
[241,null,null,null,null,null,null,null,null,null,false,"*241"]
[242,null,null,null,null,null,null,null,null,null,false,"*242"]
[243,null,null,null,null,null,null,null,null,null,false,"*243"]
[244,null,null,null,null,null,null,null,null,null,false,"*244"]
[245,null,null,null,null,null,null,null,null,null,false,"*245"]
[246,null,null,null,null,null,null,null,null,null,false,"*246"]
[247,null,null,null,null,null,null,null,null,null,false,"*247"]
[248,null,null,null,null,null,null,null,null,null,false,"*248"]
[249,null,null,null,null,null,null,null,null,null,false,"*249"]
[250,null,null,null,null,null,null,null,null,null,false,"*250"]
[251,null,null,null,null,null,null,null,null,null,false,"*251"]
[252,null,null,null,null,null,null,null,null,null,false,"*252"]
[253,null,null,null,null,null,null,null,null,null,false,"*253"]
[254,null,null,null,null,null,null,null,null,null,false,"*254"]
[255,null,null,null,null,null,null,null,null,null,false,"*255"]
[256,null,null,null,null,null,null,null,null,null,false,"*256"]
[257,null,null,null,null,null,null,null,null,null,false,"*257"]
[258,null,null,null,null,null,null,null,null,null,{"$f":"COUNTIF(H292:H323,H293)=1","v":false},"*258"]
[259,null,null,null,null,null,null,null,null,null,false,"*259"]
[260,null,null,null,null,null,null,null,null,null,false,"*260"]
[261,null,null,null,null,null,null,null,null,null,false,"*261"]
[262,null,null,null,null,null,null,null,null,null,false,"*262"]
[263,null,null,null,null,null,null,null,null,null,false,"*263"]
[264,null,null,null,null,null,null,null,null,null,false,"*264"]
[265,null,null,null,null,null,null,null,null,null,false,"*265"]
[266,null,null,null,null,null,null,null,null,null,false,"*266"]
[267,null,null,null,null,null,null,null,null,null,false,"*267"]
[268,null,null,null,null,null,null,null,null,null,false,"*268"]
[269,null,null,null,null,null,null,null,null,null,false,"*269"]
[270,null,null,null,null,null,null,null,null,null,false,"*270"]
[271,null,null,null,null,null,null,null,null,null,false,"*271"]
[272,null,null,null,null,null,null,null,null,null,false,"*272"]
[273,null,null,null,null,null,null,null,null,null,false,"*273"]
[274,null,null,null,null,null,null,null,null,null,false,"*274"]
[275,null,null,null,null,null,null,null,null,null,false,"*275"]
[276,null,null,null,null,null,null,null,null,null,false,"*276"]
[277,null,null,null,null,null,null,null,null,null,false,"*277"]
[278,null,null,null,null,null,null,null,null,null,false,"*278"]
[279,null,null,null,null,null,null,null,null,null,false,"*279"]
[280,null,null,null,null,null,null,null,null,null,false,"*280"]
[281,null,null,null,null,null,null,null,null,null,false,"*281"]
[282,null,null,null,null,null,null,null,null,null,false,"*282"]
[283,null,null,null,null,null,null,null,null,null,false,"*283"]
[284,null,null,null,null,null,null,null,null,null,false,"*284"]
[285,null,null,null,null,null,null,null,null,null,false,"*285"]
[286,null,null,null,null,null,null,null,null,null,false,"*286"]
[287,null,null,null,null,null,null,null,null,null,false,"*287"]
[288,null,null,null,null,null,null,null,null,null,false,"*288"]
[289,null,null,null,null,null,null,null,null,null,false,"*289"]
[290,null,null,null,null,null,null,null,null,null,false,"*290"]
[291,null,null,null,null,null,null,null,null,null,false,{"$f":"\"*\"&H326&D326&A326&I326","v":"*291"}]
[292,null,null,null,null,null,null,null,null,null,false,"*292"]
[293,null,null,null,null,null,null,null,null,null,false,"*293"]
[294,null,null,null,null,null,null,null,null,null,false,"*294"]
[295,null,null,null,null,null,null,null,null,null,false,"*295"]
[296,null,null,null,null,null,null,null,null,null,false,"*296"]
[297,null,null,null,null,null,null,null,null,null,false,"*297"]
[298,null,null,null,null,null,null,null,null,null,false,"*298"]
[299,null,null,null,null,null,null,null,null,null,false,"*299"]
[300,null,null,null,null,null,null,null,null,null,false,"*300"]
[301,null,null,null,null,null,null,null,null,null,false,"*301"]
[302,null,null,null,null,null,null,null,null,null,false,"*302"]
[303,null,null,null,null,null,null,null,null,null,false,"*303"]
[304,null,null,null,null,null,null,null,null,null,false,"*304"]
[305,null,null,null,null,null,null,null,null,null,false,"*305"]
[306,null,null,null,null,null,null,null,null,null,false,"*306"]
[307,null,null,null,null,null,null,null,null,null,false,"*307"]
[308,null,null,null,null,null,null,null,null,null,false,"*308"]
[309,null,null,null,null,null,null,null,null,null,false,"*309"]
[310,null,null,null,null,null,null,null,null,null,false,"*310"]
[311,null,null,null,null,null,null,null,null,null,false,"*311"]
[312,null,null,null,null,null,null,null,null,null,false,"*312"]
[313,null,null,null,null,null,null,null,null,null,false,"*313"]
[314,null,null,null,null,null,null,null,null,null,false,"*314"]
[315,null,null,null,null,null,null,null,null,null,false,"*315"]
[316,null,null,null,null,null,null,null,null,null,false,"*316"]
[317,null,null,null,null,null,null,null,null,null,false,"*317"]
[318,null,null,null,null,null,null,null,null,null,false,"*318"]
[319,null,null,null,null,null,null,null,null,null,false,"*319"]
[320,null,null,null,null,null,null,null,null,null,false,"*320"]
[321,null,null,null,null,null,null,null,null,null,false,"*321"]
[322,null,null,null,null,null,null,null,null,null,{"$f":"COUNTIF(H356:H387,H357)=1","v":false},"*322"]
[323,null,null,null,null,null,null,null,null,null,false,"*323"]
[324,null,null,null,null,null,null,null,null,null,false,"*324"]
[325,null,null,null,null,null,null,null,null,null,false,"*325"]
[326,null,null,null,null,null,null,null,null,null,false,"*326"]
[327,null,null,null,null,null,null,null,null,null,false,"*327"]
[328,null,null,null,null,null,null,null,null,null,false,"*328"]
[329,null,null,null,null,null,null,null,null,null,false,"*329"]
[330,null,null,null,null,null,null,null,null,null,false,"*330"]
[331,null,null,null,null,null,null,null,null,null,false,"*331"]
[332,null,null,null,null,null,null,null,null,null,false,"*332"]
[333,null,null,null,null,null,null,null,null,null,false,"*333"]
[334,null,null,null,null,null,null,null,null,null,false,"*334"]
[335,null,null,null,null,null,null,null,null,null,false,"*335"]
[336,null,null,null,null,null,null,null,null,null,false,"*336"]
[337,null,null,null,null,null,null,null,null,null,false,"*337"]
[338,null,null,null,null,null,null,null,null,null,false,"*338"]
[339,null,null,null,null,null,null,null,null,null,false,"*339"]
[340,null,null,null,null,null,null,null,null,null,false,"*340"]
[341,null,null,null,null,null,null,null,null,null,false,"*341"]
[342,null,null,null,null,null,null,null,null,null,false,"*342"]
[343,null,null,null,null,null,null,null,null,null,false,"*343"]
[344,null,null,null,null,null,null,null,null,null,false,"*344"]
[345,null,null,null,null,null,null,null,null,null,false,"*345"]
[346,null,null,null,null,null,null,null,null,null,false,"*346"]
[347,null,null,null,null,null,null,null,null,null,false,"*347"]
[348,null,null,null,null,null,null,null,null,null,false,"*348"]
[349,null,null,null,null,null,null,null,null,null,false,"*349"]
[350,null,null,null,null,null,null,null,null,null,false,"*350"]
[351,null,null,null,null,null,null,null,null,null,false,"*351"]
[352,null,null,null,null,null,null,null,null,null,false,"*352"]
[353,null,null,null,null,null,null,null,null,null,false,"*353"]
[354,null,null,null,null,null,null,null,null,null,false,"*354"]
[355,null,null,null,null,null,null,null,null,null,false,{"$f":"\"*\"&H390&D390&A390&I390","v":"*355"}]
[356,null,null,null,null,null,null,null,null,null,false,"*356"]
[357,null,null,null,null,null,null,null,null,null,false,"*357"]
[358,null,null,null,null,null,null,null,null,null,false,"*358"]
[359,null,null,null,null,null,null,null,null,null,false,"*359"]
[360,null,null,null,null,null,null,null,null,null,false,"*360"]
[361,null,null,null,null,null,null,null,null,null,false,"*361"]
[362,null,null,null,null,null,null,null,null,null,false,"*362"]
[363,null,null,null,null,null,null,null,null,null,false,"*363"]
[364,null,null,null,null,null,null,null,null,null,false,"*364"]
[365,null,null,null,null,null,null,null,null,null,false,"*365"]
[366,null,null,null,null,null,null,null,null,null,false,"*366"]
[367,null,null,null,null,null,null,null,null,null,false,"*367"]
[368,null,null,null,null,null,null,null,null,null,false,"*368"]
[369,null,null,null,null,null,null,null,null,null,false,"*369"]
[370,null,null,null,null,null,null,null,null,null,false,"*370"]
[371,null,null,null,null,null,null,null,null,null,false,"*371"]
[372,null,null,null,null,null,null,null,null,null,false,"*372"]
[373,null,null,null,null,null,null,null,null,null,false,"*373"]
[374,null,null,null,null,null,null,null,null,null,false,"*374"]
[375,null,null,null,null,null,null,null,null,null,false,"*375"]
[376,null,null,null,null,null,null,null,null,null,false,"*376"]
[377,null,null,null,null,null,null,null,null,null,false,"*377"]
[378,null,null,null,null,null,null,null,null,null,false,"*378"]
[379,null,null,null,null,null,null,null,null,null,false,"*379"]
[380,null,null,null,null,null,null,null,null,null,false,"*380"]
[381,null,null,null,null,null,null,null,null,null,false,"*381"]
[382,null,null,null,null,null,null,null,null,null,false,"*382"]
[383,null,null,null,null,null,null,null,null,null,false,"*383"]
[384,null,null,null,null,null,null,null,null,null,false,"*384"]
[385,null,null,null,null,null,null,null,null,null,false,"*385"]
[386,null,null,null,null,null,null,null,null,null,{"$f":"COUNTIF(H420:H451,H421)=1","v":false},"*386"]
[387,null,null,null,null,null,null,null,null,null,false,"*387"]
[388,null,null,null,null,null,null,null,null,null,false,"*388"]
[389,null,null,null,null,null,null,null,null,null,false,"*389"]
[390,null,null,null,null,null,null,null,null,null,false,"*390"]
[391,null,null,null,null,null,null,null,null,null,false,"*391"]
[392,null,null,null,null,null,null,null,null,null,false,"*392"]
[393,null,null,null,null,null,null,null,null,null,false,"*393"]
[394,null,null,null,null,null,null,null,null,null,false,"*394"]
[395,null,null,null,null,null,null,null,null,null,false,"*395"]
[396,null,null,null,null,null,null,null,null,null,false,"*396"]
[397,null,null,null,null,null,null,null,null,null,false,"*397"]
[398,null,null,null,null,null,null,null,null,null,false,"*398"]
[399,null,null,null,null,null,null,null,null,null,false,"*399"]
[400,null,null,null,null,null,null,null,null,null,false,"*400"]
[401,null,null,null,null,null,null,null,null,null,false,"*401"]
[402,null,null,null,null,null,null,null,null,null,false,"*402"]
[403,null,null,null,null,null,null,null,null,null,false,"*403"]
[404,null,null,null,null,null,null,null,null,null,false,"*404"]
[405,null,null,null,null,null,null,null,null,null,false,"*405"]
[406,null,null,null,null,null,null,null,null,null,false,"*406"]
[407,null,null,null,null,null,null,null,null,null,false,"*407"]
[408,null,null,null,null,null,null,null,null,null,false,"*408"]
[409,null,null,null,null,null,null,null,null,null,false,"*409"]
[410,null,null,null,null,null,null,null,null,null,false,"*410"]
[411,null,null,null,null,null,null,null,null,null,false,"*411"]
[412,null,null,null,null,null,null,null,null,null,false,"*412"]
[413,null,null,null,null,null,null,null,null,null,false,"*413"]
[414,null,null,null,null,null,null,null,null,null,false,"*414"]
[415,null,null,null,null,null,null,null,null,null,false,"*415"]
[416,null,null,null,null,null,null,null,null,null,false,"*416"]
[417,null,null,null,null,null,null,null,null,null,false,"*417"]
[418,null,null,null,null,null,null,null,null,null,false,"*418"]
[419,null,null,null,null,null,null,null,null,null,false,{"$f":"\"*\"&H454&D454&A454&I454","v":"*419"}]
[420,null,null,null,null,null,null,null,null,null,false,"*420"]
[421,null,null,null,null,null,null,null,null,null,false,"*421"]
[422,null,null,null,null,null,null,null,null,null,false,"*422"]
[423,null,null,null,null,null,null,null,null,null,false,"*423"]
[424,null,null,null,null,null,null,null,null,null,false,"*424"]
[425,null,null,null,null,null,null,null,null,null,false,"*425"]
[426,null,null,null,null,null,null,null,null,null,false,"*426"]
[427,null,null,null,null,null,null,null,null,null,false,"*427"]
[428,null,null,null,null,null,null,null,null,null,false,"*428"]
[429,null,null,null,null,null,null,null,null,null,false,"*429"]
[430,null,null,null,null,null,null,null,null,null,false,"*430"]
[431,null,null,null,null,null,null,null,null,null,false,"*431"]
[432,null,null,null,null,null,null,null,null,null,false,"*432"]
[433,null,null,null,null,null,null,null,null,null,false,"*433"]
[434,null,null,null,null,null,null,null,null,null,false,"*434"]
[435,null,null,null,null,null,null,null,null,null,false,"*435"]
[436,null,null,null,null,null,null,null,null,null,false,"*436"]
[437,null,null,null,null,null,null,null,null,null,false,"*437"]
[438,null,null,null,null,null,null,null,null,null,false,"*438"]
[439,null,null,null,null,null,null,null,null,null,false,"*439"]
[440,null,null,null,null,null,null,null,null,null,false,"*440"]
[441,null,null,null,null,null,null,null,null,null,false,"*441"]
[442,null,null,null,null,null,null,null,null,null,false,"*442"]
[443,null,null,null,null,null,null,null,null,null,false,"*443"]
[444,null,null,null,null,null,null,null,null,null,false,"*444"]
[445,null,null,null,null,null,null,null,null,null,false,"*445"]
[446,null,null,null,null,null,null,null,null,null,false,"*446"]
[447,null,null,null,null,null,null,null,null,null,false,"*447"]
[448,null,null,null,null,null,null,null,null,null,false,"*448"]
[449,null,null,null,null,null,null,null,null,null,false,"*449"]
[450,null,null,null,null,null,null,null,null,null,{"$f":"COUNTIF(H484:H515,H485)=1","v":false},"*450"]
[451,null,null,null,null,null,null,null,null,null,false,"*451"]
[452,null,null,null,null,null,null,null,null,null,false,"*452"]
[453,null,null,null,null,null,null,null,null,null,false,"*453"]
[454,null,null,null,null,null,null,null,null,null,false,"*454"]
[455,null,null,null,null,null,null,null,null,null,false,"*455"]
[456,null,null,null,null,null,null,null,null,null,false,"*456"]
[457,null,null,null,null,null,null,null,null,null,false,"*457"]
[458,null,null,null,null,null,null,null,null,null,false,"*458"]
[459,null,null,null,null,null,null,null,null,null,false,"*459"]
[460,null,null,null,null,null,null,null,null,null,false,"*460"]
[461,null,null,null,null,null,null,null,null,null,false,"*461"]
[462,null,null,null,null,null,null,null,null,null,false,"*462"]
[463,null,null,null,null,null,null,null,null,null,false,"*463"]
[464,null,null,null,null,null,null,null,null,null,false,"*464"]
[465,null,null,null,null,null,null,null,null,null,false,"*465"]
[466,null,null,null,null,null,null,null,null,null,false,"*466"]
[467,null,null,null,null,null,null,null,null,null,false,"*467"]
[468,null,null,null,null,null,null,null,null,null,false,"*468"]
[469,null,null,null,null,null,null,null,null,null,false,"*469"]
[470,null,null,null,null,null,null,null,null,null,false,"*470"]
[471,null,null,null,null,null,null,null,null,null,false,"*471"]
[472,null,null,null,null,null,null,null,null,null,false,"*472"]
[473,null,null,null,null,null,null,null,null,null,false,"*473"]
[474,null,null,null,null,null,null,null,null,null,false,"*474"]
[475,null,null,null,null,null,null,null,null,null,false,"*475"]
[476,null,null,null,null,null,null,null,null,null,false,"*476"]
[477,null,null,null,null,null,null,null,null,null,false,"*477"]
[478,null,null,null,null,null,null,null,null,null,false,"*478"]
[479,null,null,null,null,null,null,null,null,null,false,"*479"]
[480,null,null,null,null,null,null,null,null,null,false,"*480"]
[481,null,null,null,null,null,null,null,null,null,false,"*481"]
[482,null,null,null,null,null,null,null,null,null,false,"*482"]
[483,null,null,null,null,null,null,null,null,null,false,{"$f":"\"*\"&H518&D518&A518&I518","v":"*483"}]
[484,null,null,null,null,null,null,null,null,null,false,"*484"]
[485,null,null,null,null,null,null,null,null,null,false,"*485"]
[486,null,null,null,null,null,null,null,null,null,false,"*486"]
[487,null,null,null,null,null,null,null,null,null,false,"*487"]
[488,null,null,null,null,null,null,null,null,null,false,"*488"]
[489,null,null,null,null,null,null,null,null,null,false,"*489"]
[490,null,null,null,null,null,null,null,null,null,false,"*490"]
[491,null,null,null,null,null,null,null,null,null,false,"*491"]
[492,null,null,null,null,null,null,null,null,null,false,"*492"]
[493,null,null,null,null,null,null,null,null,null,false,"*493"]
[494,null,null,null,null,null,null,null,null,null,false,"*494"]
[495,null,null,null,null,null,null,null,null,null,false,"*495"]
[496,null,null,null,null,null,null,null,null,null,false,"*496"]
[497,null,null,null,null,null,null,null,null,null,false,"*497"]
[498,null,null,null,null,null,null,null,null,null,false,"*498"]
[499,null,null,null,null,null,null,null,null,null,false,"*499"]
[500,null,null,null,null,null,null,null,null,null,false,"*500"]
[501,null,null,null,null,null,null,null,null,null,false,"*501"]
[502,null,null,null,null,null,null,null,null,null,false,"*502"]
[503,null,null,null,null,null,null,null,null,null,false,"*503"]
[504,null,null,null,null,null,null,null,null,null,false,"*504"]
[505,null,null,null,null,null,null,null,null,null,false,"*505"]
[506,null,null,null,null,null,null,null,null,null,false,"*506"]
[507,null,null,null,null,null,null,null,null,null,false,"*507"]
[508,null,null,null,null,null,null,null,null,null,false,"*508"]
[509,null,null,null,null,null,null,null,null,null,false,"*509"]
[510,null,null,null,null,null,null,null,null,null,false,"*510"]
[511,null,null,null,null,null,null,null,null,null,false,"*511"]
[512,null,null,null,null,null,null,null,null,null,false,"*512"]
[513,null,null,null,null,null,null,null,null,null,false,"*513"]
[514,null,null,null,null,null,null,null,null,null,{"$f":"COUNTIF(H548:H579,H549)=1","v":false},"*514"]
[515,null,null,null,null,null,null,null,null,null,false,"*515"]
[516,null,null,null,null,null,null,null,null,null,false,"*516"]
[517,null,null,null,null,null,null,null,null,null,false,"*517"]
[518,null,null,null,null,null,null,null,null,null,false,"*518"]
[519,null,null,null,null,null,null,null,null,null,false,"*519"]
[520,null,null,null,null,null,null,null,null,null,false,"*520"]
[521,null,null,null,null,null,null,null,null,null,false,"*521"]
[522,null,null,null,null,null,null,null,null,null,false,"*522"]
[523,null,null,null,null,null,null,null,null,null,false,"*523"]
[524,null,null,null,null,null,null,null,null,null,false,"*524"]
[525,null,null,null,null,null,null,null,null,null,false,"*525"]
[526,null,null,null,null,null,null,null,null,null,false,"*526"]
[527,null,null,null,null,null,null,null,null,null,false,"*527"]
[528,null,null,null,null,null,null,null,null,null,false,"*528"]
[529,null,null,null,null,null,null,null,null,null,false,"*529"]
[530,null,null,null,null,null,null,null,null,null,false,"*530"]
[531,null,null,null,null,null,null,null,null,null,false,"*531"]
[532,null,null,null,null,null,null,null,null,null,false,"*532"]
[533,null,null,null,null,null,null,null,null,null,false,"*533"]
[534,null,null,null,null,null,null,null,null,null,false,"*534"]
[535,null,null,null,null,null,null,null,null,null,false,"*535"]
[536,null,null,null,null,null,null,null,null,null,false,"*536"]
[537,null,null,null,null,null,null,null,null,null,false,"*537"]
[538,null,null,null,null,null,null,null,null,null,false,"*538"]
[539,null,null,null,null,null,null,null,null,null,false,"*539"]
[540,null,null,null,null,null,null,null,null,null,false,"*540"]
[541,null,null,null,null,null,null,null,null,null,false,"*541"]
[542,null,null,null,null,null,null,null,null,null,false,"*542"]
[543,null,null,null,null,null,null,null,null,null,false,"*543"]
[544,null,null,null,null,null,null,null,null,null,false,"*544"]
[545,null,null,null,null,null,null,null,null,null,false,"*545"]
[546,null,null,null,null,null,null,null,null,null,false,"*546"]
[547,null,null,null,null,null,null,null,null,null,false,{"$f":"\"*\"&H582&D582&A582&I582","v":"*547"}]
[548,null,null,null,null,null,null,null,null,null,false,"*548"]
[549,null,null,null,null,null,null,null,null,null,false,"*549"]
[550,null,null,null,null,null,null,null,null,null,false,"*550"]
[551,null,null,null,null,null,null,null,null,null,false,"*551"]
[552,null,null,null,null,null,null,null,null,null,false,"*552"]
[553,null,null,null,null,null,null,null,null,null,false,"*553"]
[554,null,null,null,null,null,null,null,null,null,false,"*554"]
[555,null,null,null,null,null,null,null,null,null,false,"*555"]
[556,null,null,null,null,null,null,null,null,null,false,"*556"]
[557,null,null,null,null,null,null,null,null,null,false,"*557"]
[558,null,null,null,null,null,null,null,null,null,false,"*558"]
[559,null,null,null,null,null,null,null,null,null,false,"*559"]
[560,null,null,null,null,null,null,null,null,null,false,"*560"]
[561,null,null,null,null,null,null,null,null,null,false,"*561"]
[562,null,null,null,null,null,null,null,null,null,false,"*562"]
[563,null,null,null,null,null,null,null,null,null,false,"*563"]
[564,null,null,null,null,null,null,null,null,null,false,"*564"]
[565,null,null,null,null,null,null,null,null,null,false,"*565"]
[566,null,null,null,null,null,null,null,null,null,false,"*566"]
[567,null,null,null,null,null,null,null,null,null,false,"*567"]
[568,null,null,null,null,null,null,null,null,null,false,"*568"]
[569,null,null,null,null,null,null,null,null,null,false,"*569"]
[570,null,null,null,null,null,null,null,null,null,false,"*570"]
[571,null,null,null,null,null,null,null,null,null,false,"*571"]
[572,null,null,null,null,null,null,null,null,null,false,"*572"]
[573,null,null,null,null,null,null,null,null,null,false,"*573"]
[574,null,null,null,null,null,null,null,null,null,false,"*574"]
[575,null,null,null,null,null,null,null,null,null,false,"*575"]
[576,null,null,null,null,null,null,null,null,null,false,"*576"]
[577,null,null,null,null,null,null,null,null,null,false,"*577"]
[578,null,null,null,null,null,null,null,null,null,{"$f":"COUNTIF(H612:H643,H613)=1","v":false},"*578"]
[579,null,null,null,null,null,null,null,null,null,false,"*579"]
[580,null,null,null,null,null,null,null,null,null,false,"*580"]
[581,null,null,null,null,null,null,null,null,null,false,"*581"]
[582,null,null,null,null,null,null,null,null,null,false,"*582"]
[583,null,null,null,null,null,null,null,null,null,false,"*583"]
[584,null,null,null,null,null,null,null,null,null,false,"*584"]
[585,null,null,null,null,null,null,null,null,null,false,"*585"]
[586,null,null,null,null,null,null,null,null,null,false,"*586"]
[587,null,null,null,null,null,null,null,null,null,false,"*587"]
[588,null,null,null,null,null,null,null,null,null,false,"*588"]
[589,null,null,null,null,null,null,null,null,null,false,"*589"]
[590,null,null,null,null,null,null,null,null,null,false,"*590"]
[591,null,null,null,null,null,null,null,null,null,false,"*591"]
[592,null,null,null,null,null,null,null,null,null,false,"*592"]
[593,null,null,null,null,null,null,null,null,null,false,"*593"]
[594,null,null,null,null,null,null,null,null,null,false,"*594"]
[595,null,null,null,null,null,null,null,null,null,false,"*595"]
[596,null,null,null,null,null,null,null,null,null,false,"*596"]
[597,null,null,null,null,null,null,null,null,null,false,"*597"]
[598,null,null,null,null,null,null,null,null,null,false,"*598"]
[599,null,null,null,null,null,null,null,null,null,false,"*599"]
[600,null,null,null,null,null,null,null,null,null,false,"*600"]
[601,null,null,null,null,null,null,null,null,null,false,"*601"]
[602,null,null,null,null,null,null,null,null,null,false,"*602"]
[603,null,null,null,null,null,null,null,null,null,false,"*603"]
[604,null,null,null,null,null,null,null,null,null,false,"*604"]
[605,null,null,null,null,null,null,null,null,null,false,"*605"]
[606,null,null,null,null,null,null,null,null,null,false,"*606"]
[607,null,null,null,null,null,null,null,null,null,false,"*607"]
[608,null,null,null,null,null,null,null,null,null,false,"*608"]
[609,null,null,null,null,null,null,null,null,null,false,"*609"]
[610,null,null,null,null,null,null,null,null,null,false,"*610"]
[611,null,null,null,null,null,null,null,null,null,false,{"$f":"\"*\"&H646&D646&A646&I646","v":"*611"}]
[612,null,null,null,null,null,null,null,null,null,false,"*612"]
[613,null,null,null,null,null,null,null,null,null,false,"*613"]
[614,null,null,null,null,null,null,null,null,null,false,"*614"]
[615,null,null,null,null,null,null,null,null,null,false,"*615"]
[616,null,null,null,null,null,null,null,null,null,false,"*616"]
[617,null,null,null,null,null,null,null,null,null,false,"*617"]
[618,null,null,null,null,null,null,null,null,null,false,"*618"]
[619,null,null,null,null,null,null,null,null,null,false,"*619"]
[620,null,null,null,null,null,null,null,null,null,false,"*620"]
[621,null,null,null,null,null,null,null,null,null,false,"*621"]
[622,null,null,null,null,null,null,null,null,null,false,"*622"]
[623,null,null,null,null,null,null,null,null,null,false,"*623"]
[624,null,null,null,null,null,null,null,null,null,false,"*624"]
[625,null,null,null,null,null,null,null,null,null,false,"*625"]
[626,null,null,null,null,null,null,null,null,null,false,"*626"]
[627,null,null,null,null,null,null,null,null,null,false,"*627"]
[628,null,null,null,null,null,null,null,null,null,false,"*628"]
[629,null,null,null,null,null,null,null,null,null,false,"*629"]
[630,null,null,null,null,null,null,null,null,null,false,"*630"]
[631,null,null,null,null,null,null,null,null,null,false,"*631"]
[632,null,null,null,null,null,null,null,null,null,false,"*632"]
[633,null,null,null,null,null,null,null,null,null,false,"*633"]
[634,null,null,null,null,null,null,null,null,null,false,"*634"]
[635,null,null,null,null,null,null,null,null,null,false,"*635"]
[636,null,null,null,null,null,null,null,null,null,false,"*636"]
[637,null,null,null,null,null,null,null,null,null,false,"*637"]
[638,null,null,null,null,null,null,null,null,null,false,"*638"]
[639,null,null,null,null,null,null,null,null,null,false,"*639"]
[640,null,null,null,null,null,null,null,null,null,false,"*640"]
[641,null,null,null,null,null,null,null,null,null,false,"*641"]
[642,null,null,null,null,null,null,null,null,null,{"$f":"COUNTIF(H676:H707,H677)=1","v":false},"*642"]
[643,null,null,null,null,null,null,null,null,null,false,"*643"]
[644,null,null,null,null,null,null,null,null,null,false,"*644"]
[645,null,null,null,null,null,null,null,null,null,false,"*645"]
[646,null,null,null,null,null,null,null,null,null,false,"*646"]
[647,null,null,null,null,null,null,null,null,null,false,"*647"]
[648,null,null,null,null,null,null,null,null,null,false,"*648"]
[649,null,null,null,null,null,null,null,null,null,false,"*649"]
[650,null,null,null,null,null,null,null,null,null,false,"*650"]
[651,null,null,null,null,null,null,null,null,null,false,"*651"]
[652,null,null,null,null,null,null,null,null,null,false,"*652"]
[653,null,null,null,null,null,null,null,null,null,false,"*653"]
[654,null,null,null,null,null,null,null,null,null,false,"*654"]
[655,null,null,null,null,null,null,null,null,null,false,"*655"]
[656,null,null,null,null,null,null,null,null,null,false,"*656"]
[657,null,null,null,null,null,null,null,null,null,false,"*657"]
[658,null,null,null,null,null,null,null,null,null,false,"*658"]
[659,null,null,null,null,null,null,null,null,null,false,"*659"]
[660,null,null,null,null,null,null,null,null,null,false,"*660"]
[661,null,null,null,null,null,null,null,null,null,false,"*661"]
[662,null,null,null,null,null,null,null,null,null,false,"*662"]
[663,null,null,null,null,null,null,null,null,null,false,"*663"]
[664,null,null,null,null,null,null,null,null,null,false,"*664"]
[665,null,null,null,null,null,null,null,null,null,false,"*665"]
[666,null,null,null,null,null,null,null,null,null,false,"*666"]
[667,null,null,null,null,null,null,null,null,null,false,"*667"]

{"sheet":"الشهادة ","index":2,"n_rows":39,"n_cols":17,"rows_kept":39,"cut":false,"hidden":false,"merged":[[28,4,28,7],[29,8,29,12],[35,0,35,4],[38,5,38,7],[37,5,37,10],[31,1,31,10],[30,0,30,11],[34,5,34,7],[34,8,34,12],[34,0,34,4],[29,3,29,4],[29,5,29,7],[2,0,2,10],[5,0,5,6],[6,0,6,6],[6,16,8,17],[23,9,23,12],[5,7,6,12],[23,6,23,8],[2,14,2,20],[3,14,3,20],[7,0,9,0],[7,1,9,3],[27,4,27,8],[10,1,13,9],[3,0,3,8],[25,0,25,9],[19,3,19,7],[21,3,21,7],[23,1,23,5]]}
[]
[]
["الجمهورية الجزائرية الديمقراطية الشعبية ",null,null,null,null,null,null,null,null,null,null,null,null,null,"ضع رقم التسلسل الموجود في سجل"]
["وزارة التربية الوطنية ",null,null,null,null,null,null,null,null,null,null,null,null,null,"الشهادات المدرسية  في الخانة الصفراء"]
[]
["مديرية التربية لولايــة الاغـــــــــواط",null,null,null,null,null,null,{"$f":"VLOOKUP($Q$7,'القائمة '!A5:L702,12,0)","v":"*1033111510836341"}]
["متوسطة سماعيني الحاج معمر تاجرونة ",null,null,null,null,null,null,null,null,null,null,null,null,null,null,null,108]
["الرقم",{"$f":"VLOOKUP($Q$7,'القائمة '!A5:J369,1,0)","v":108}]
[]
[]
[null,"شهادة مدرسيـــــــــــــة "]
[]
[]
[]
[]
[]
[]
["يشهد مدير متوسطة سماعيني معمر بتاجرونة بأن التلميـــــــــــذ (ة)"]
[]
["اللقــــب",null,null,{"$f":"VLOOKUP($Q$7,'القائمة '!A5:J369,2,0)","v":"نقاز "}]
[]
["الاســـــم",null,null,{"$f":"VLOOKUP($Q$7,'القائمة '!A5:J369,3,0)","v":"طيفور"}]
[]
["تاريخ الميلاد ",{"$f":"VLOOKUP($Q$7,'القائمة '!A5:J1095,4,0)","v":"1985-03-09"},null,null,null,null,"مكان الميلاد ",null,null,{"$f":"VLOOKUP($Q$7,'القائمة '!A5:J677,5,0)","v":"الغيشة"}]
[]
["يتابــــــــــــــع (ت) دروســـــــــــــه (هــــــا) بالمؤسســـة "]
[]
["القســـــــــــم ",null,null,null,{"$f":"VLOOKUP($Q$7,'القائمة '!A5:J241,6,0)","v":"الثامنة أساسي"}]
["السنة الدراسية ",null,null,null,{"$f":"VLOOKUP($Q$7,'القائمة '!A5:J692,7,0)","v":"1998/1999"}]
["رقم التسجيل",null,null,{"$f":"VLOOKUP($Q$7,'القائمة '!A5:J292,8,0)","v":103},null,"تاريخ الخروج",null,null,{"$f":"VLOOKUP($Q$7,'القائمة '!A5:J853,9,0)","v":"1999-06-30"}]
[]
[]
[]
[]
["محرر الشهادة ",null,null,null,null,"تاجرونة في : ",null,null,{"$f":"TODAY()","v":"2022-10-09"}]
[{"$f":"VLOOKUP($Q$7,'القائمة '!A5:J1227,10,0)","v":"دهكل احمد"}]
[]
[null,null,null,null,null,"إمضاء و ختم مدير المؤسسة "]
[null,null,null,null,null,"جامد خليل"]

{"sheet":"Sheet4","index":3,"n_rows":33,"n_cols":9,"rows_kept":33,"cut":false,"hidden":true,"merged":[]}
[]
[]
[]
[]
[]
[]
[]
[null,null,null,"1994/1995"]
[null,null,null,"1995/1996"]
[null,null,null,"1996/1997",null,null,"دهكل أحمد",null,"السنة السابعة أساسي"]
[null,null,null,"1997/1998",null,null,"قمقام دربالي",null,"السنة الثامنة أساسي"]
[null,null,null,"1998/1999",null,null,"طيفوري احمد",null,"السنة التاسعة أساسي"]
[null,null,null,"1999/2000",null,null,null,null,"السنة الاولي متوسط"]
[null,null,null,"2000/2001",null,null,null,null,"السنة الثانية متوسط "]
[null,null,null,"2001/2002",null,null,null,null,"السنة الثالثة متوسط "]
[null,null,null,"2002/2003",null,null,null,null,"السنة الرابعة متوسط "]
[null,null,null,"2003/2004"]
[null,null,null,"2004/2005"]
[null,null,null,"2005/2006"]
[null,null,null,"2006/2007"]
[null,null,null,"2007/2008"]
[null,null,null,"2008/2009"]
[null,null,null,"2009/2010"]
[null,null,null,"2010/2011"]
[null,null,null,"2011/2012"]
[null,null,null,"2012/2013"]
[null,null,null,"2013/2014"]
[null,null,null,"2014/2015"]
[null,null,null,"2015/2016"]
[null,null,null,"2016/2017"]
[null,null,null,"2017/2018"]
[null,null,null,"2018/2019"]
[null,null,null,"2019/2020"]

{"sheet":"البحث","index":4,"n_rows":14,"n_cols":10,"rows_kept":14,"cut":false,"hidden":false,"merged":[[3,0,7,7]]}
["الرقم ","اللقب","الاسم","تاريخ الميلاد","مكان الميلاد","القسم ","السنة الدراسية ","رقم التسجيل","تاريخ الخروج","محرر الشهادة "]
[108]
[]
["ملاحظة هامة :البحث يكون بأي صيغة تريدها فقط اكتب في خانة واحد و اضغط على ايقونة البحث"]
[]
[]
[]
[]
[]
[]
[]
[]
["الرقم ","اللقب","الاسم","تاريخ الميلاد","مكان الميلاد","القسم ","السنة الدراسية ","رقم التسجيل","تاريخ الخروج","محرر الشهادة "]
[108,"نقاز ","طيفور","1985-03-09","الغيشة","الثامنة أساسي","1998/1999",103,"1999-06-30","دهكل احمد"]